bitfinex-derivatives/quotes_BTCF0:USTF0_20250528
["timestamp","ask_amount","ask_price","bid_price","bid_amount"]
[1748425474710,0.45692,108810.0,108800.0,2.05386747]
[1748425474911,0.45692,108810.0,108800.0,2.19615121]
[1748425475301,0.45692,108810.0,108800.0,2.17656024]
[1748425475502,0.6406407,108810.0,108800.0,2.17656024]
[1748425477615,0.6416407,108810.0,108800.0,2.17256024]
[1748425477806,0.6426407,108810.0,108800.0,2.17256024]
[1748425478407,0.6426407,108810.0,108800.0,0.93256024]
[1748425478817,0.6426407,108810.0,108800.0,0.40644024]
[1748425479116,0.6426407,108810.0,108800.0,2.17252024]
[1748425479317,0.6426407,108810.0,108800.0,2.05081482]
[1748425480321,0.6426407,108810.0,108800.0,1.52473482]
[1748425480508,1.12514612,108810.0,108800.0,0.38521482]
[1748425480703,1.12514612,108810.0,108800.0,0.81081482]
[1748425480909,1.12514612,108810.0,108800.0,0.75941069]
[1748425481309,1.0034407,108810.0,108800.0,0.80049198]
[1748425481610,1.0034407,108810.0,108800.0,0.92788185]
[1748425482319,1.0034407,108810.0,108800.0,0.81081482]
[1748425482620,1.0034407,108810.0,108800.0,0.80048447]
[1748425488925,0.6426407,108810.0,108800.0,0.92218989]
[1748425489122,0.09812,108810.0,108800.0,0.99552024]
[1748425489329,0.2512207,108810.0,108800.0,1.2554612]
[1748425489621,0.06762,108810.0,108800.0,2.5269612]
[1748425489817,0.2513407,108810.0,108800.0,2.5269612]
[1748425490014,0.2513406,108810.0,108800.0,2.69348314]
[1748425490211,0.2513406,108810.0,108800.0,2.76547824]
[1748425490411,0.2512206,108810.0,108800.0,2.76547824]
[1748425490616,0.2513406,108810.0,108800.0,2.76547824]
[1748425491916,0.2513406,108810.0,108800.0,1.52547824]
[1748425492114,0.2513406,108810.0,108800.0,1.40377282]
[1748425492318,0.2513406,108810.0,108800.0,1.04297282]
[1748425492519,0.2513406,108810.0,108800.0,1.16467824]
[1748425492714,0.2513406,108810.0,108800.0,0.39046272]
[1748425492715,0.73384602,108810.0,108800.0,0.39046272]
[1748425492915,0.73384602,108810.0,108800.0,0.23025934]
[1748425493121,0.73384602,108810.0,108800.0,0.56719721]
[1748425493527,0.6121406,108810.0,108800.0,0.56719721]
[1748425493721,0.73384602,108810.0,108800.0,0.56719721]
[1748425494930,0.73384602,108810.0,108800.0,0.75093471]
[1748425495831,0.6121406,108810.0,108800.0,0.75093471]
[1748425497333,0.6121406,108810.0,108800.0,0.87264013]
[1748425497534,0.6121406,108810.0,108800.0,0.90414013]
[1748425498425,0.6120206,108810.0,108800.0,0.37814013]
[1748425498629,0.6121406,108810.0,108800.0,0.96374925]
[1748425499037,0.6121406,108810.0,108800.0,0.91242175]
[1748425499231,0.6121406,108810.0,108800.0,0.79071633]
[1748425499433,0.6121406,108810.0,108800.0,0.26475633]
[1748425499735,0.6121406,108810.0,108800.0,0.23325633]
[1748425499936,0.73384602,108810.0,108800.0,0.19094618]
[1748425500133,0.73384602,108810.0,108800.0,0.61642618]
[1748425500338,0.73384602,108810.0,108800.0,0.19094618]
[1748425500635,0.73384602,108810.0,108800.0,0.46668553]
[1748425501030,0.73384602,108810.0,108800.0,0.42561818]
[1748425501942,0.73384602,108810.0,108800.0,0.60935568]
[1748425502234,0.73284602,108810.0,108800.0,0.60935568]
[1748425502539,0.73384602,108810.0,108800.0,0.61035568]
[1748425502743,0.6121406,108810.0,108800.0,0.61035568]
[1748425503141,0.6121406,108810.0,108800.0,0.7320611]
[1748425503440,0.6121406,108810.0,108800.0,0.87182845]
[1748425503441,0.6120206,108810.0,108800.0,0.87182845]
[1748425503627,0.6121406,108810.0,108800.0,0.87182845]
[1748425503830,0.6121406,108810.0,108800.0,0.8307611]
[1748425504934,0.6121406,108810.0,108800.0,0.88016865]
[1748425505640,0.6121406,108810.0,108800.0,0.93149615]
[1748425506350,0.6121406,108810.0,108800.0,0.75846323]
[1748425506656,0.6121406,108810.0,108800.0,0.77749073]
[1748425506859,0.6121406,108810.0,108800.0,0.72616323]
[1748425507657,0.6121406,108810.0,108800.0,0.77749073]
[1748425509556,0.6121406,108810.0,108800.0,0.77749358]
[1748425511754,0.6121406,108810.0,108800.0,0.89456061]
[1748425512352,0.6121406,108810.0,108800.0,0.89452061]
[1748425513048,0.6121406,108810.0,108800.0,0.77745358]
[1748425513654,0.73384602,108810.0,108800.0,0.05246568]
[1748425513858,0.73384602,108810.0,108800.0,0.5258]
[1748425513859,0.87164462,108810.0,108800.0,0.5258]
[1748425514061,0.91757842,108810.0,108800.0,0.5258]
[1748425517659,0.1837375,108800.0,108790.0,1.40359346]
[1748425517859,0.6387375,108800.0,108790.0,1.82899346]
[1748425518062,0.6387375,108800.0,108790.0,1.95069888]
[1748425518664,0.6397375,108800.0,108790.0,1.95069888]
[1748425518970,0.6397375,108800.0,108790.0,1.42493888]
[1748425519171,0.6397375,108800.0,108790.0,1.95069888]
[1748425519367,0.6397375,108800.0,108790.0,1.90476148]
[1748425519561,0.6407375,108800.0,108790.0,1.90476148]
[1748425520864,0.6407375,108800.0,108790.0,1.19524708]
[1748425521167,0.6407375,108800.0,108790.0,1.09177416]
[1748425521374,0.6407375,108800.0,108790.0,1.56846166]
[1748425521670,0.76244292,108800.0,108790.0,0.1015337]
[1748425521872,0.76244292,108800.0,108790.0,0.4755662]
[1748425522261,0.6407375,108800.0,108790.0,0.42687699]
[1748425522482,0.6407375,108800.0,108790.0,0.66240854]
[1748425522483,0.6408575,108800.0,108790.0,0.66240854]
[1748425522771,0.6407375,108800.0,108790.0,0.84616284]
[1748425522977,0.6407375,108800.0,108790.0,0.66240854]
[1748425523167,0.6408575,108800.0,108790.0,0.66240854]
[1748425523367,0.6408575,108800.0,108790.0,0.72445752]
[1748425523865,0.6408575,108800.0,108790.0,0.76555558]
[1748425526577,0.6408575,108800.0,108790.0,0.76552962]
[1748425528774,0.6408575,108800.0,108790.0,0.79622962]
[1748425531473,0.2800575,108800.0,108790.0,0.76552962]
[1748425531673,0.6408575,108800.0,108790.0,0.76552962]
[1748425533677,0.6408575,108800.0,108790.0,0.88723504]
[1748425535481,0.6408575,108800.0,108790.0,0.88723147]
[1748425535883,0.6098575,108800.0,108790.0,0.83853487]
[1748425536083,0.6098575,108800.0,108790.0,0.82793681]
[1748425536271,0.6098575,108800.0,108790.0,0.87926431]
[1748425536471,0.6097375,108800.0,108790.0,0.87926431]
[1748425536671,0.6098575,108800.0,108790.0,0.87926431]
[1748425537585,0.6098575,108800.0,108790.0,0.92796091]
[1748425538977,0.6098575,108800.0,108790.0,1.04502794]
[1748425540483,0.6098575,108800.0,108790.0,0.92796091]
[1748425541479,0.6098575,108800.0,108790.0,0.31884651]
[1748425541685,0.6098575,108800.0,108790.0,0.99766091]
[1748425542585,0.6098575,108800.0,108790.0,1.02836091]
[1748425543587,0.06532,108800.0,108790.0,1.02836091]
[1748425543780,0.2158375,108800.0,108790.0,1.28913681]
[1748425543978,0.0321,108800.0,108790.0,1.46189185]
[1748425544178,0.00212,108800.0,108790.0,2.70189185]
[1748425544382,0.002,108800.0,108790.0,2.70189185]
[1748425544685,0.00212,108800.0,108790.0,2.70189185]
[1748425545682,0.03222,108800.0,108790.0,2.70189185]
[1748425546192,0.03222,108800.0,108790.0,2.58032905]
[1748425547781,0.00212,108800.0,108790.0,2.58032905]
[1748425549389,0.00212,108800.0,108790.0,2.69475457]
[1748425549585,0.00212,108800.0,108790.0,2.64968264]
[1748425549785,0.002,108800.0,108790.0,2.64968264]
[1748425550190,0.00212,108800.0,108790.0,2.64968264]
[1748425550384,0.00112,108800.0,108790.0,2.64968264]
[1748425550592,0.00012,108800.0,108790.0,2.65068264]
[1748425550891,0.00112,108800.0,108790.0,2.65268264]
[1748425553091,0.03352,108800.0,108790.0,2.65268264]
[1748425553590,0.03352,108800.0,108790.0,2.76952537]
[1748425553783,0.03352,108800.0,108790.0,2.65268264]
[1748425553990,0.03352,108800.0,108790.0,2.76951719]
[1748425555195,0.06652,108800.0,108790.0,2.76951719]
[1748425555896,0.06652,108800.0,108790.0,2.65268264]
[1748425556398,0.06652,108800.0,108790.0,2.12712264]
[1748425556598,0.06652,108800.0,108790.0,2.05710649]
[1748425556901,0.06652,108800.0,108790.0,2.65243368]
[1748425557092,0.06652,108800.0,108790.0,2.22731368]
[1748425557290,0.06652,108800.0,108790.0,2.65243368]
[1748425558593,0.06652,108800.0,108790.0,2.65243716]
[1748425560304,0.0664,108800.0,108790.0,2.65243716]
[1748425560694,0.06652,108800.0,108790.0,2.65243989]
[1748425561296,0.03352,108800.0,108790.0,2.65243989]
[1748425561692,0.03352,108800.0,108790.0,2.60379665]
[1748425562099,0.06662,108800.0,108790.0,2.53180155]
[1748425562697,0.06662,108800.0,108790.0,2.60379665]
[1748425563394,0.06662,108800.0,108790.0,2.48222649]
[1748425563591,0.06662,108800.0,108790.0,2.48214649]
[1748425563795,0.06662,108800.0,108790.0,2.60371665]
[1748425564804,0.06662,108800.0,108790.0,2.07843665]
[1748425565005,0.06662,108800.0,108790.0,2.60359665]
[1748425565199,0.06662,108800.0,108790.0,2.17855665]
[1748425565396,0.09792,108800.0,108790.0,2.60359665]
[1748425566500,0.09792,108800.0,108790.0,2.65225706]
[1748425567804,0.09792,108800.0,108790.0,2.24394643]
[1748425568006,0.09792,108800.0,108790.0,2.76906643]
[1748425568908,0.0978,108800.0,108790.0,2.76906643]
[1748425569109,0.09792,108800.0,108790.0,2.76906643]
[1748425569695,0.06662,108800.0,108790.0,2.76906643]
[1748425569906,0.06662,108800.0,108790.0,2.64749627]
[1748425570100,0.06662,108800.0,108790.0,2.69707133]
[1748425570501,0.0665,108800.0,108790.0,2.69707133]
[1748425570701,0.06662,108800.0,108790.0,2.69707133]
[1748425571609,0.06662,108800.0,108790.0,2.58023678]
[1748425572200,0.06662,108800.0,108790.0,2.70901236]
[1748425575715,0.06662,108800.0,108790.0,2.58023678]
[1748425576106,0.09752,108800.0,108790.0,2.58023678]
[1748425576300,0.09752,108800.0,108790.0,2.58028596]
[1748425577002,0.09752,108800.0,108790.0,2.70906154]
[1748425578417,0.09752,108800.0,108790.0,2.81162788]
[1748425579312,0.06662,108800.0,108790.0,2.81162788]
[1748425579613,0.06662,108800.0,108790.0,2.6828523]
[1748425579909,0.06662,108800.0,108790.0,2.58028596]
[1748425580115,0.06662,108800.0,108790.0,2.60355186]
[1748425580516,0.09882,108800.0,108790.0,2.60355186]
[1748425581506,0.09882,108800.0,108790.0,2.4819817]
[1748425581712,0.09882,108800.0,108790.0,1.36355186]
[1748425582119,0.09882,108800.0,108790.0,2.60355186]
[1748425584318,0.09882,108800.0,108790.0,2.53156155]
[1748425585823,0.09882,108800.0,108790.0,2.17076155]
[1748425586125,0.09882,108800.0,108790.0,2.53156155]
[1748425586517,0.09882,108800.0,108790.0,2.17076155]
[1748425586822,0.09882,108800.0,108790.0,2.53156155]
[1748425588023,0.09882,108800.0,108790.0,2.65316021]
[1748425588220,0.09882,108800.0,108790.0,2.81894639]
[1748425588423,0.09882,108800.0,108790.0,2.77387956]
[1748425588632,0.09882,108800.0,108790.0,2.72515052]
[1748425591229,0.09882,108800.0,108790.0,2.30015052]
[1748425591429,0.09882,108800.0,108790.0,2.73868581]
[1748425592415,0.09882,108800.0,108790.0,2.84404272]
[1748425592623,0.2825575,108800.0,108790.0,2.0429139]
[1748425592926,0.2825575,108800.0,108790.0,2.5518414]
[1748425592927,0.09882,108800.0,108790.0,2.5518414]
[1748425593128,0.09882,108800.0,108790.0,2.47985109]
[1748425593832,0.09882,108800.0,108790.0,2.47967897]
[1748425594215,0.09882,108800.0,108790.0,2.35809456]
[1748425594616,0.09882,108800.0,108790.0,2.05487897]
[1748425594917,0.09882,108800.0,108790.0,2.51027897]
[1748425595426,0.2825575,108800.0,108790.0,1.83329456]
[1748425595622,0.09882,108800.0,108790.0,2.11887897]
[1748425595825,0.2825575,108800.0,108790.0,2.29622619]
[1748425597126,0.2825575,108800.0,108790.0,1.77142619]
[1748425597331,0.2825575,108800.0,108790.0,2.29622619]
[1748425597932,0.2825575,108800.0,108790.0,2.2960668]
[1748425598427,0.2825575,108800.0,108790.0,2.19070989]
[1748425598621,0.2825575,108800.0,108790.0,2.24088568]
[1748425598823,0.2825575,108800.0,108790.0,2.24084568]
[1748425599128,0.2825575,108800.0,108790.0,2.11926127]
[1748425599317,0.6433575,108800.0,108790.0,2.34619495]
[1748425599515,0.6433575,108800.0,108790.0,1.92143495]
[1748425599726,0.6433575,108800.0,108790.0,2.35790282]
[1748425599924,0.76494191,108800.0,108790.0,0.3275071]
[1748425600122,0.76494191,108800.0,108790.0,0.5608556]
[1748425600321,0.76494191,108800.0,108790.0,1.0856156]
[1748425600620,0.76494191,108800.0,108790.0,0.87571455]
[1748425601231,0.6433575,108800.0,108790.0,0.87571455]
[1748425602726,0.6433575,108800.0,108790.0,0.8346158]
[1748425605132,0.6433575,108800.0,108790.0,0.91933094]
[1748425605322,0.6433575,108800.0,108790.0,0.91795213]
[1748425609735,0.6433575,108800.0,108790.0,0.96761848]
[1748425610933,0.6433575,108800.0,108790.0,0.91789112]
[1748425613537,0.6433575,108800.0,108790.0,0.94809112]
[1748425613835,0.6433575,108800.0,108790.0,0.97959112]
[1748425614523,0.6432375,108800.0,108790.0,0.97959112]
[1748425614730,0.6433575,108800.0,108790.0,0.97959112]
[1748425615237,0.6433575,108800.0,108790.0,0.97959219]
[1748425615436,0.2825575,108800.0,108790.0,0.97959219]
[1748425615741,0.6433575,108800.0,108790.0,0.97959219]
[1748425615937,0.6433575,108800.0,108790.0,0.85800778]
[1748425616235,0.6433575,108800.0,108790.0,0.97959219]
[1748425618839,0.6433575,108800.0,108790.0,0.97960458]
[1748425619033,0.6433575,108800.0,108790.0,1.01180458]
[1748425619638,0.6433575,108800.0,108790.0,1.01180974]
[1748425620332,0.0665,108800.0,108790.0,1.4530954]
[1748425620533,0.0665,108800.0,108790.0,1.38292177]
[1748425620534,0.2503574,108800.0,108790.0,1.38292177]
[1748425620736,0.2503574,108800.0,108790.0,1.43253985]
[1748425620931,0.2502374,108800.0,108790.0,1.07173985]
[1748425621131,0.2503574,108800.0,108790.0,1.07173985]
[1748425621537,0.2816574,108800.0,108790.0,1.03953985]
[1748425621737,0.2816574,108800.0,108790.0,1.14470233]
[1748425622125,0.2816574,108800.0,108790.0,1.14470913]
[1748425624149,0.2816574,108800.0,108790.0,1.09508743]
[1748425624549,0.6424574,108800.0,108790.0,1.09508743]
[1748425624842,0.6424574,108800.0,108790.0,0.98992495]
[1748425625041,0.6424574,108800.0,108790.0,1.14470913]
[1748425625639,0.6424574,108800.0,108790.0,1.03954665]
[1748425626538,0.6424574,108800.0,108790.0,1.14482615]
[1748425626742,0.6424574,108800.0,108790.0,1.14483766]
[1748425628442,0.6424574,108800.0,108790.0,1.09510362]
[1748425628643,0.6424574,108800.0,108790.0,0.56515335]
[1748425628845,0.6424574,108800.0,108790.0,0.98987335]
[1748425629045,0.6424574,108800.0,108790.0,0.95837335]
[1748425629932,0.6424574,108800.0,108790.0,0.98897335]
[1748425630438,0.6424574,108800.0,108790.0,1.14385766]
[1748425631033,0.6424574,108800.0,108790.0,1.17565766]
[1748425631938,0.6424574,108800.0,108790.0,1.07042739]
[1748425633337,0.6424574,108800.0,108790.0,1.17566227]
[1748425635544,0.6424574,108800.0,108790.0,1.11326761]
[1748425636737,0.6424574,108800.0,108790.0,0.96438181]
[1748425638249,0.6424574,108800.0,108790.0,0.43974181]
[1748425638549,0.6424574,108800.0,108790.0,0.96434181]
[1748425639338,0.6424574,108800.0,108790.0,0.9642357]
[1748425640039,0.6424574,108800.0,108790.0,0.9340357]
[1748425640238,0.6424574,108800.0,108790.0,0.5093957]
[1748425640452,0.6424574,108800.0,108790.0,0.9340357]
[1748425643156,0.6424574,108800.0,108790.0,0.9648357]
[1748425643640,0.6424574,108800.0,108790.0,0.96485058]
[1748425643845,0.6424574,108800.0,108790.0,0.99775058]
[1748425644044,0.6424574,108800.0,108790.0,0.810858]
[1748425644243,0.6424574,108800.0,108790.0,0.9946124]
[1748425645455,0.6424574,108800.0,108790.0,1.11166954]
[1748425646846,0.45872,108800.0,108790.0,1.11166954]
[1748425647057,0.6424572,108800.0,108790.0,1.09275876]
[1748425647357,0.6110372,108800.0,108790.0,1.09275876]
[1748425647550,0.6111572,108800.0,108790.0,1.16474907]
[1748425647954,0.6111572,108800.0,108790.0,1.16475532]
[1748425649741,0.6111572,108800.0,108790.0,1.09911361]
[1748425650159,0.6111572,108800.0,108790.0,1.0271233]
[1748425652255,0.2503572,108800.0,108790.0,1.0271233]
[1748425652456,0.6111572,108800.0,108790.0,1.02713512]
[1748425654548,0.42742,108800.0,108790.0,1.02713512]
[1748425654751,0.6111572,108800.0,108790.0,1.02713512]
[1748425654953,0.6110372,108800.0,108790.0,1.02713512]
[1748425655156,0.6111572,108800.0,108790.0,1.02713512]
[1748425658559,0.42742,108800.0,108790.0,1.02713512]
[1748425658855,0.6111572,108800.0,108790.0,1.02713512]
[1748425659052,0.6111572,108800.0,108790.0,0.97571969]
[1748425660358,0.6111572,108800.0,108790.0,0.42949528]
[1748425660662,0.6417572,108800.0,108790.0,1.02702602]
[1748425660862,0.6417572,108800.0,108790.0,0.99452602]
[1748425661063,0.6417572,108800.0,108790.0,0.99423482]
[1748425662063,0.6417572,108800.0,108790.0,0.99411482]
[1748425664567,0.6417572,108800.0,108790.0,0.87253041]
[1748425664750,0.6417572,108800.0,108790.0,0.99411482]
[1748425664955,0.6417572,108800.0,108790.0,0.46975482]
[1748425665165,0.6417572,108800.0,108790.0,0.99407482]
[1748425666167,0.6417572,108800.0,108790.0,0.96117482]
[1748425666361,0.6417572,108800.0,108790.0,0.40605482]
[1748425666557,1.12414161,108800.0,108790.0,0.93037452]
[1748425666758,1.0025572,108800.0,108790.0,0.93037452]
[1748425667869,1.0024372,108800.0,108790.0,0.93037452]
[1748425668066,1.0024372,108800.0,108790.0,0.96087452]
[1748425668067,1.0025572,108800.0,108790.0,0.96087452]
[1748425672072,1.0025572,108800.0,108790.0,0.91158484]
[1748425672370,1.0025572,108800.0,108790.0,0.86015851]
[1748425672958,1.0025572,108800.0,108790.0,0.91158705]
[1748425673164,1.0025572,108800.0,108790.0,0.96087881]
[1748425674275,1.0025572,108800.0,108790.0,0.96088063]
[1748425674585,1.0035572,108800.0,108790.0,0.96088063]
[1748425677271,0.6427572,108800.0,108790.0,0.96088063]
[1748425678682,0.6427572,108800.0,108790.0,0.93038506]
[1748425678979,0.6427572,108800.0,108790.0,0.9303849]
[1748425679776,0.6427572,108800.0,108790.0,0.5059049]
[1748425679976,0.6427572,108800.0,108790.0,0.9302649]
[1748425680567,0.76434161,108800.0,108790.0,0.15126854]
[1748425680769,0.76434161,108800.0,108790.0,0.5242]
[1748425680969,0.58060441,108800.0,108780.0,0.09762722]
[1748425681178,0.6408541,108790.0,108780.0,0.50068664]
[1748425681377,0.6408541,108790.0,108780.0,0.92504365]
[1748425681574,0.6408541,108790.0,108780.0,0.97646748]
[1748425682097,0.6408541,108790.0,108780.0,1.04848045]
[1748425682379,0.6408541,108790.0,108780.0,0.92292234]
[1748425682690,0.6418541,108790.0,108780.0,0.92392234]
[1748425683482,0.76343851,108790.0,108780.0,0.92392234]
[1748425685478,0.76343851,108790.0,108780.0,0.9732172]
[1748425685685,0.76343851,108790.0,108780.0,0.97318752]
[1748425685985,0.76243851,108790.0,108780.0,0.92292234]
[1748425686182,0.76343851,108790.0,108780.0,0.92292234]
[1748425686587,0.76443851,108790.0,108780.0,0.92292234]
[1748425687579,0.76443851,108790.0,108780.0,0.57558524]
[1748425687882,0.76443851,108790.0,108780.0,0.56518121]
[1748425688775,0.76443851,108790.0,108780.0,0.52408]
[1748425689472,0.58068441,108790.0,108770.0,2.62977104]
[1748425689679,0.75825541,108780.0,108770.0,1.30574464]
[1748425689982,0.87983982,108780.0,108770.0,1.60848023]
[1748425690490,0.87983982,108780.0,108770.0,0.14224023]
[1748425690689,0.87983982,108780.0,108770.0,0.52545902]
[1748425692084,0.88083982,108780.0,108770.0,0.52645902]
[1748425692478,0.75925541,108780.0,108770.0,0.10213902]
[1748425692785,0.75925541,108780.0,108770.0,0.22372343]
[1748425693483,0.75925541,108780.0,108770.0,0.10213902]
[1748425693985,0.75925541,108780.0,108770.0,0.30775133]
[1748425694388,0.75825541,108780.0,108770.0,0.33805133]
[1748425694591,0.76025541,108780.0,108770.0,0.33805133]
[1748425694886,0.638791,108780.0,108770.0,0.33805133]
[1748425695082,0.638791,108780.0,108770.0,0.37025133]
[1748425695283,0.638671,108780.0,108770.0,0.37025133]
[1748425695487,0.638671,108780.0,108770.0,0.40225133]
[1748425695683,0.641791,108780.0,108770.0,0.40225133]
[1748425696077,0.641791,108780.0,108770.0,0.44341457]
[1748425700088,0.641791,108780.0,108770.0,0.93545457]
[1748425700889,0.641791,108780.0,108770.0,0.96575457]
[1748425701695,0.641791,108780.0,108770.0,0.84410813]
[1748425702186,0.641791,108780.0,108770.0,0.75030813]
[1748425702593,0.641791,108780.0,108770.0,0.56652023]
[1748425702779,0.641791,108780.0,108770.0,0.75030813]
[1748425704782,0.76343744,108780.0,108770.0,0.00137902]
[1748425704990,0.76343744,108780.0,108770.0,0.52537902]
[1748425705883,0.76343744,108780.0,108770.0,0.70916682]
[1748425706493,0.40263744,108780.0,108770.0,0.70916682]
[1748425706687,1.12423744,108780.0,108770.0,0.75026803]
[1748425707991,1.002591,108780.0,108770.0,0.56648023]
[1748425708488,1.002591,108780.0,108770.0,0.75026803]
[1748425709193,1.002591,108780.0,108770.0,0.79902378]
[1748425709387,1.002591,108780.0,108770.0,0.82942378]
[1748425709981,1.002591,108780.0,108770.0,0.95107022]
[1748425710187,1.002591,108780.0,108770.0,0.89171326]
[1748425710388,0.971671,108780.0,108770.0,0.93281447]
[1748425710597,0.971791,108780.0,108770.0,0.93281447]
[1748425712382,0.971791,108780.0,108770.0,0.81116803]
[1748425713588,0.971791,108780.0,108770.0,0.93281447]
[1748425713996,0.610991,108780.0,108770.0,0.93281447]
[1748425714197,0.610991,108780.0,108770.0,0.40881447]
[1748425714404,0.610991,108780.0,108770.0,0.93265447]
[1748425717691,0.610991,108780.0,108770.0,0.81100803]
[1748425717899,0.73263997,108780.0,108770.0,0.932657]
[1748425718402,0.73263997,108780.0,108770.0,0.93267618]
[1748425721300,0.76463997,108780.0,108770.0,0.92355579]
[1748425723606,0.76463997,108780.0,108770.0,0.97237398]
[1748425723795,0.76463997,108780.0,108770.0,1.02379922]
[1748425724305,0.76463997,108780.0,108770.0,0.96121922]
[1748425724498,0.76463997,108780.0,108770.0,0.25367142]
[1748425724698,0.76463997,108780.0,108770.0,0.93081922]
[1748425724902,0.76463997,108780.0,108770.0,0.88200103]
[1748425725095,0.76463997,108780.0,108770.0,0.83057579]
[1748425726703,0.76463997,108780.0,108770.0,0.64678799]
[1748425727404,0.76463997,108780.0,108770.0,0.83057589]
[1748425728206,0.76463997,108780.0,108770.0,0.87939408]
[1748425728402,0.76463997,108780.0,108770.0,0.68793349]
[1748425728605,0.642991,108780.0,108770.0,0.75007242]
[1748425728798,0.88628894,108780.0,108770.0,0.75007242]
[1748425729306,0.76463997,108780.0,108770.0,0.70892692]
[1748425729701,0.76463997,108780.0,108770.0,0.75007314]
[1748425729902,0.76463997,108780.0,108770.0,0.78017314]
[1748425730109,0.76463997,108780.0,108770.0,0.90182211]
[1748425730508,0.76463997,108780.0,108770.0,0.86067589]
[1748425731099,1.12543997,108780.0,108770.0,0.86067589]
[1748425732895,1.12543997,108780.0,108770.0,0.92507589]
[1748425733104,1.003791,108780.0,108770.0,0.92507589]
[1748425733302,1.003671,108780.0,108770.0,0.97650113]
[1748425733709,1.003791,108780.0,108770.0,0.97650113]
[1748425734499,0.610991,108780.0,108770.0,0.92507589]
[1748425735910,0.610991,108780.0,108770.0,0.97650113]
[1748425737304,0.610991,108780.0,108770.0,1.02538433]
[1748425738808,0.610991,108780.0,108770.0,1.02400531]
[1748425739108,0.610991,108780.0,108770.0,1.02400676]
[1748425739613,0.610991,108780.0,108770.0,0.94159579]
[1748425743102,0.610991,108780.0,108770.0,0.89271114]
[1748425743302,0.642991,108780.0,108770.0,0.89271114]
[1748425745314,0.642991,108780.0,108770.0,0.55100211]
[1748425745516,0.642991,108780.0,108770.0,0.94266211]
[1748425745717,0.76463997,108780.0,108770.0,0.94266211]
[1748425746214,0.76463997,108780.0,108770.0,0.38696211]
[1748425746513,0.76463997,108780.0,108770.0,0.88034211]
[1748425747214,1.24708894,108780.0,108770.0,0.05142524]
[1748425747401,1.24708894,108780.0,108770.0,0.80757456]
[1748425747606,1.12543997,108780.0,108770.0,0.92922353]
[1748425747809,1.12543997,108780.0,108770.0,0.80757456]
[1748425748719,1.12543997,108780.0,108770.0,0.92922353]
[1748425750025,1.003791,108780.0,108770.0,0.80757456]
[1748425751411,0.642871,108780.0,108770.0,0.92923794]
[1748425751613,0.6428709,108780.0,108770.0,1.02313794]
[1748425752222,0.6429909,108780.0,108770.0,1.02313182]
[1748425752519,0.6428709,108780.0,108770.0,1.02313182]
[1748425752717,0.6429909,108780.0,108770.0,1.02313182]
[1748425756227,0.6429909,108780.0,108770.0,0.97425652]
[1748425756417,0.6429909,108780.0,108770.0,1.02312975]
[1748425759420,0.6429909,108780.0,108770.0,0.90146637]
[1748425759625,0.6429909,108780.0,108770.0,1.02312975]
[1748425760323,0.6429909,108780.0,108770.0,1.02304975]
[1748425761427,0.6429909,108780.0,108770.0,0.99014975]
[1748425762720,0.6429909,108780.0,108770.0,0.94127652]
[1748425764036,0.09842,108780.0,108770.0,0.97157652]
[1748425764225,0.06642,108780.0,108770.0,0.97157652]
[1748425764424,0.0663,108780.0,108770.0,0.97157652]
[1748425764828,0.0663,108780.0,108770.0,1.33237652]
[1748425765129,0.06642,108780.0,108770.0,1.28095128]
[1748425765533,0.06642,108780.0,108770.0,1.33236734]
[1748425766130,0.06442,108780.0,108770.0,2.62124057]
[1748425766436,0.0341,108780.0,108770.0,2.75993172]
[1748425766634,0.03422,108780.0,108770.0,2.75993172]
[1748425768631,0.03422,108780.0,108770.0,2.64283607]
[1748425769038,0.03422,108780.0,108770.0,2.64277374]
[1748425769337,0.0341,108780.0,108770.0,2.75986939]
[1748425769637,0.03422,108780.0,108770.0,2.64277374]
[1748425769821,0.0341,108780.0,108770.0,2.75986939]
[1748425770027,0.03422,108780.0,108770.0,2.64277374]
[1748425770340,0.00412,108780.0,108770.0,2.76443712]
[1748425770634,0.00412,108780.0,108770.0,2.88153277]
[1748425770834,0.00412,108780.0,108770.0,2.76443712]
[1748425771042,0.03542,108780.0,108770.0,2.76443712]
[1748425771641,0.03542,108780.0,108770.0,3.12523712]
[1748425773435,0.03542,108780.0,108770.0,3.07642622]
[1748425775541,0.0324,108790.0,108780.0,0.40186876]
[1748425775736,0.0635,108790.0,108780.0,1.15651011]
[1748425775932,0.0635,108790.0,108780.0,1.20528534]
[1748425776133,0.03122,108790.0,108780.0,2.58319796]
[1748425776935,0.03222,108790.0,108780.0,2.58419796]
[1748425777539,0.03222,108790.0,108780.0,2.58416504]
[1748425778840,0.06372,108790.0,108780.0,2.58416504]
[1748425780437,0.06372,108790.0,108780.0,2.41832708]
[1748425780931,0.06372,108790.0,108780.0,2.34631552]
[1748425784941,0.03222,108790.0,108780.0,1.10631552]
[1748425785240,0.03233818,108800.0,108790.0,0.183754]
[1748425785445,0.3608,108820.0,108810.0,0.1837202]
[1748425785744,0.5747033,108820.0,108810.0,0.8693922]
[1748425785943,0.0302,108820.0,108810.0,0.9012922]
[1748425786145,0.2139035,108820.0,108810.0,0.9012922]
[1748425786540,0.2140235,108820.0,108810.0,0.9012922]
[1748425786940,0.2150235,108820.0,108810.0,0.9022922]
[1748425787447,0.03132,108820.0,108810.0,0.91911288]
[1748425787645,0.2150234,108820.0,108810.0,0.8703922]
[1748425787845,0.2149034,108820.0,108810.0,0.9017922]
[1748425788151,0.2150234,108820.0,108810.0,0.9017922]
[1748425788338,0.2774234,108820.0,108810.0,0.9017922]
[1748425788738,0.09372,108820.0,108810.0,0.9017922]
[1748425789537,0.2774234,108820.0,108810.0,0.9017922]
[1748425790340,0.2774234,108820.0,108810.0,0.9333922]
[1748425790850,0.09372,108820.0,108810.0,0.9333922]
[1748425791645,0.2774234,108820.0,108810.0,0.9333922]
[1748425792648,0.2774234,108820.0,108810.0,0.04200862]
[1748425792649,0.75988678,108820.0,108810.0,0.04200862]
[1748425792849,0.75988678,108820.0,108810.0,0.56488862]
[1748425793053,1.12068678,108820.0,108810.0,0.74860892]
[1748425793245,1.12068678,108820.0,108810.0,0.7076003]
[1748425793440,1.12068678,108820.0,108810.0,0.74860892]
[1748425793848,0.9990234,108820.0,108810.0,0.74860892]
[1748425794542,0.9990234,108820.0,108810.0,0.14140862]
[1748425794743,0.9990234,108820.0,108810.0,0.56488862]
[1748425794948,0.9990234,108820.0,108810.0,0.74860892]
[1748425795253,0.9990234,108820.0,108810.0,0.7076003]
[1748425795645,0.9990234,108820.0,108810.0,0.74860892]
[1748425800059,1.12068678,108820.0,108810.0,0.14136862]
[1748425800444,1.12068678,108820.0,108810.0,0.56480862]
[1748425800646,1.21258679,108820.0,108810.0,0.04200862]
[1748425800852,1.46258679,108820.0,108810.0,0.04200862]
[1748425801152,1.46258679,108820.0,108810.0,0.001]
[1748425802660,0.1837203,108810.0,108800.0,0.08978558]